[Event "*** Titled Tuesday Blitz"]
[Site "Chess.com"]
[Date "2019.01.01"]
[Round "2"]
[White "Korchmar_Vasiliy"]
[Black "Blitzstream"]
[Result "1-0"]
[WhiteElo "2786"]
[BlackElo "2548"]
[TimeControl "180+2"]
[EndTime "13:20:21 PST"]
[Termination "Korchmar_Vasiliy won by checkmate"]

1. d4 {[%clk 0:03:01.2]} 1... Nf6 {[%clk 0:03:00.4]} 2. c4 {[%clk 0:03:01.6]}
2... c6 {[%clk 0:03:00.9]} 3. Nf3 {[%clk 0:03:02.3]} 3... d5 {[%clk 0:03:01.7]}
4. g3 {[%clk 0:03:03.7]} 4... e6 {[%clk 0:02:59.7]} 5. Bg2 {[%clk 0:03:04.2]}
5... Be7 {[%clk 0:02:55.7]} 6. O-O {[%clk 0:03:05.7]} 6... O-O {[%clk
0:02:55.7]} 7. Nbd2 {[%clk 0:03:06.6]} 7... b6 {[%clk 0:02:52.8]} 8. Qc2 {[%clk
0:03:07.4]} 8... Bb7 {[%clk 0:02:51.1]} 9. e4 {[%clk 0:03:07.8]} 9... dxe4
{[%clk 0:02:50.7]} 10. Nxe4 {[%clk 0:03:09.7]} 10... Nbd7 {[%clk 0:02:51.6]} 11.
Bf4 {[%clk 0:02:54.6]} 11... Nxe4 {[%clk 0:02:36.8]} 12. Qxe4 {[%clk 0:02:56.5]}
12... Qc8 {[%clk 0:02:32.9]} 13. Ne5 {[%clk 0:02:23.9]} 13... Nxe5 {[%clk
0:02:33.5]} 14. Bxe5 {[%clk 0:02:24.7]} 14... Rd8 {[%clk 0:02:34.3]} 15. Rad1
{[%clk 0:02:07.1]} 15... Rd7 {[%clk 0:02:33.8]} 16. h4 {[%clk 0:01:56.9]} 16...
Bf8 {[%clk 0:02:31.2]} 17. h5 {[%clk 0:01:54.2]} 17... c5 {[%clk 0:02:24]} 18.
d5 {[%clk 0:01:53.2]} 18... exd5 {[%clk 0:02:25]} 19. cxd5 {[%clk 0:01:55.1]}
19... Qd8 {[%clk 0:02:21]} 20. Qf5 {[%clk 0:01:20.5]} 20... Bd6 {[%clk 0:01:28]}
21. Bc3 {[%clk 0:01:06.5]} 21... b5 {[%clk 0:00:50.7]} 22. Be4 {[%clk
0:01:06.6]} 22... g6 {[%clk 0:00:48.6]} 23. hxg6 {[%clk 0:01:08.3]} 23... fxg6
{[%clk 0:00:40.2]} 24. Qe6+ {[%clk 0:01:01.6]} 24... Rf7 {[%clk 0:00:41.2]} 25.
Bxg6 {[%clk 0:00:34.3]} 25... hxg6 {[%clk 0:00:43.1]} 26. Qxg6+ {[%clk
0:00:35.8]} 26... Kf8 {[%clk 0:00:42.8]} 27. Rfe1 {[%clk 0:00:37.5]} 27... b4
{[%clk 0:00:32.8]} 28. Qh6+ {[%clk 0:00:36.4]} 28... Kg8 {[%clk 0:00:29.8]} 29.
Qh8# {[%clk 0:00:37.5]} 1-0

[Event "*** Titled Tuesday Blitz"]
[Site "Chess.com"]
[Date "2019.01.01"]
[Round "2"]
[White "MaestroASK"]
[Black "NTBT_DHS"]
[Result "1-0"]
[WhiteElo "2560"]
[BlackElo "2703"]
[TimeControl "180+2"]
[EndTime "13:20:22 PST"]
[Termination "MaestroASK won by resignation"]

1. g3 {[%clk 0:03:01.9]} 1... Nf6 {[%clk 0:02:59.1]} 2. Bg2 {[%clk 0:03:01.9]}
2... g6 {[%clk 0:02:59.8]} 3. d3 {[%clk 0:03:03]} 3... Bg7 {[%clk 0:03:01.2]} 4.
e4 {[%clk 0:03:04]} 4... O-O {[%clk 0:03:03.1]} 5. Nh3 {[%clk 0:03:04.5]} 5...
d6 {[%clk 0:03:03.5]} 6. O-O {[%clk 0:03:05.3]} 6... c6 {[%clk 0:03:01.1]} 7. c3
{[%clk 0:03:02.4]} 7... b5 {[%clk 0:02:49]} 8. f4 {[%clk 0:03:01.9]} 8... Qb6+
{[%clk 0:02:49.3]} 9. Kh1 {[%clk 0:02:59.5]} 9... Bg4 {[%clk 0:02:47]} 10. Qe1
{[%clk 0:02:59.2]} 10... e5 {[%clk 0:02:32]} 11. f5 {[%clk 0:02:57.8]} 11...
Bxh3 {[%clk 0:02:30.6]} 12. Bxh3 {[%clk 0:02:57.4]} 12... c5 {[%clk 0:02:27.6]}
13. g4 {[%clk 0:02:54.8]} 13... Nc6 {[%clk 0:02:05.7]} 14. g5 {[%clk 0:02:54]}
14... Nh5 {[%clk 0:02:03.7]} 15. f6 {[%clk 0:02:54.4]} 15... Bh8 {[%clk
0:02:04.8]} 16. Bg4 {[%clk 0:02:54.2]} 16... Nf4 {[%clk 0:02:05.3]} 17. Bxf4
{[%clk 0:02:53.5]} 17... exf4 {[%clk 0:02:07.2]} 18. Rxf4 {[%clk 0:02:53.6]}
18... Rfe8 {[%clk 0:02:08.6]} 19. Bd7 {[%clk 0:02:45.8]} 19... Re5 {[%clk
0:02:07.3]} 20. h4 {[%clk 0:02:41.7]} 20... d5 {[%clk 0:01:58.3]} 21. Nd2 {[%clk
0:02:33.5]} 21... h6 {[%clk 0:01:53.9]} 22. Nf3 {[%clk 0:02:29.5]} 22... dxe4
{[%clk 0:01:45.5]} 23. dxe4 {[%clk 0:02:29.5]} 23... Qc7 {[%clk 0:01:19.5]} 24.
Bxc6 {[%clk 0:02:27.8]} 24... Re6 {[%clk 0:01:19.5]} 25. Bxa8 {[%clk 0:02:16.9]}
25... Qxf4 {[%clk 0:01:18.8]} 26. Qf2 {[%clk 0:02:13.4]} 26... hxg5 {[%clk
0:01:13]} 27. hxg5 {[%clk 0:02:13.5]} 27... Rd6 {[%clk 0:01:05.5]} 28. Bd5
{[%clk 0:02:13]} 28... Bxf6 {[%clk 0:01:02.9]} 29. gxf6 {[%clk 0:02:12.9]} 29...
Rxf6 {[%clk 0:01:04.8]} 30. Rf1 {[%clk 0:02:12.5]} 30... g5 {[%clk 0:01:03.1]}
31. Qg2 {[%clk 0:02:09.7]} 31... Rh6+ {[%clk 0:01:01]} 32. Kg1 {[%clk 0:02:09]}
32... g4 {[%clk 0:00:59.7]} 33. Nh2 {[%clk 0:02:04.4]} 33... Qe3+ {[%clk
0:00:56.3]} 34. Qf2 {[%clk 0:02:03.3]} 34... Qxf2+ {[%clk 0:00:53.6]} 35. Rxf2
{[%clk 0:02:03.5]} 35... g3 {[%clk 0:00:55]} 36. Rg2 {[%clk 0:02:03.8]} 36...
Kf8 {[%clk 0:00:48.3]} 37. Rxg3 {[%clk 0:02:03.6]} 37... Ke8 {[%clk 0:00:49.7]}
38. Rf3 {[%clk 0:01:59.2]} 38... Rh7 {[%clk 0:00:50.4]} 39. Ng4 {[%clk
0:01:57.6]} 39... Ke7 {[%clk 0:00:48.2]} 40. Ne5 {[%clk 0:01:56]} 40... f6
{[%clk 0:00:44.5]} 41. Nc6+ {[%clk 0:01:55.9]} 41... Kd6 {[%clk 0:00:45.9]} 42.
Rxf6+ {[%clk 0:01:55]} 42... Kc7 {[%clk 0:00:46.6]} 43. Nxa7 {[%clk 0:01:55]}
43... b4 {[%clk 0:00:48.5]} 44. cxb4 {[%clk 0:01:52.9]} 44... cxb4 {[%clk
0:00:49.3]} 45. Rf7+ {[%clk 0:01:53.4]} 1-0

[Event "*** Titled Tuesday Blitz"]
[Site "Chess.com"]
[Date "2019.01.01"]
[Round "2"]
[White "julinha97"]
[Black "pandamaster3000"]
[Result "1-0"]
[WhiteElo "2113"]
[BlackElo "2217"]
[TimeControl "180+2"]
[EndTime "13:20:25 PST"]
[Termination "julinha97 won by resignation"]

1. e4 {[%clk 0:03:01.9]} 1... e6 {[%clk 0:03:00.3]} 2. d4 {[%clk 0:03:02.5]}
2... d5 {[%clk 0:03:01.9]} 3. Bd3 {[%clk 0:02:58.5]} 3... dxe4 {[%clk
0:02:49.4]} 4. Bxe4 {[%clk 0:03:00.4]} 4... Nf6 {[%clk 0:02:50.7]} 5. Bf3 {[%clk
0:02:52.6]} 5... c5 {[%clk 0:02:46.5]} 6. Ne2 {[%clk 0:02:50.5]} 6... Nc6 {[%clk
0:02:43.9]} 7. Be3 {[%clk 0:02:48.6]} 7... cxd4 {[%clk 0:02:43.8]} 8. Nxd4
{[%clk 0:02:47.7]} 8... Nxd4 {[%clk 0:02:45]} 9. Qxd4 {[%clk 0:02:45.8]} 9...
Qxd4 {[%clk 0:02:37.5]} 10. Bxd4 {[%clk 0:02:47.7]} 10... Be7 {[%clk 0:02:36]}
11. Nc3 {[%clk 0:02:45.8]} 11... O-O {[%clk 0:02:34.5]} 12. O-O-O {[%clk
0:02:43.3]} 12... a6 {[%clk 0:02:35.4]} 13. Bb6 {[%clk 0:02:20.2]} 13... Nd7
{[%clk 0:02:32.6]} 14. Bc7 {[%clk 0:02:19.2]} 14... Bd8 {[%clk 0:01:43.3]} 15.
Bd6 {[%clk 0:02:14.9]} 15... Re8 {[%clk 0:01:44.6]} 16. Bg3 {[%clk 0:02:01.8]}
16... Bf6 {[%clk 0:01:35.9]} 17. Ne4 {[%clk 0:02:00.5]} 17... Be5 {[%clk
0:00:53.3]} 18. Bxe5 {[%clk 0:01:53.4]} 18... Nxe5 {[%clk 0:00:55.2]} 19. Nd6
{[%clk 0:01:54.7]} 19... Rd8 {[%clk 0:00:20.8]} 20. Nxc8 {[%clk 0:01:27]} 20...
Raxc8 {[%clk 0:00:19.1]} 21. Bxb7 {[%clk 0:01:27.7]} 21... Rb8 {[%clk
0:00:18.4]} 22. Bxa6 {[%clk 0:01:26.1]} 22... Re8 {[%clk 0:00:18.2]} 23. a3
{[%clk 0:01:23.4]} 23... Ng4 {[%clk 0:00:19.3]} 24. Rd2 {[%clk 0:01:20.6]} 24...
e5 {[%clk 0:00:19.6]} 25. f3 {[%clk 0:01:21.4]} 25... Ne3 {[%clk 0:00:20]} 26.
Re1 {[%clk 0:01:20.9]} 26... Nf5 {[%clk 0:00:20.9]} 27. Rde2 {[%clk 0:01:13.6]}
27... f6 {[%clk 0:00:20.4]} 28. Bc4+ {[%clk 0:01:13.7]} 28... Kh8 {[%clk
0:00:21]} 29. c3 {[%clk 0:01:13.8]} 29... Rec8 {[%clk 0:00:19.7]} 30. Be6 {[%clk
0:01:12]} 30... Nd4 {[%clk 0:00:18.6]} 31. Bxc8 {[%clk 0:01:11.5]} 31... Rxc8
{[%clk 0:00:19.2]} 32. Re4 {[%clk 0:01:04.3]} 32... Nc6 {[%clk 0:00:15.9]} 33.
Rc4 {[%clk 0:01:04.4]} 1-0

[Event "*** Titled Tuesday Blitz"]
[Site "Chess.com"]
[Date "2019.01.01"]
[Round "2"]
[White "P0ubelle"]
[Black "Hieronymus00"]
[Result "0-1"]
[WhiteElo "2185"]
[BlackElo "2161"]
[TimeControl "180+2"]
[EndTime "13:20:27 PST"]
[Termination "Hieronymus00 won by checkmate"]

1. e4 {[%clk 0:03:01.8]} 1... e5 {[%clk 0:03:00.6]} 2. Nf3 {[%clk 0:03:02.8]}
2... Nc6 {[%clk 0:03:01.5]} 3. d4 {[%clk 0:03:04]} 3... exd4 {[%clk 0:03:02.2]}
4. Nxd4 {[%clk 0:03:05.1]} 4... Nf6 {[%clk 0:03:03.1]} 5. Nxc6 {[%clk
0:03:02.2]} 5... bxc6 {[%clk 0:03:03]} 6. e5 {[%clk 0:03:02.5]} 6... Qe7 {[%clk
0:03:03]} 7. Qe2 {[%clk 0:03:03.9]} 7... Nd5 {[%clk 0:03:03.6]} 8. c4 {[%clk
0:03:05]} 8... Nb6 {[%clk 0:03:04.6]} 9. b3 {[%clk 0:03:02.5]} 9... a5 {[%clk
0:03:05.1]} 10. Ba3 {[%clk 0:03:01.3]} 10... Qe6 {[%clk 0:02:54.4]} 11. Bb2
{[%clk 0:02:59.1]} 11... a4 {[%clk 0:02:53.6]} 12. Nd2 {[%clk 0:02:59.9]} 12...
Bb4 {[%clk 0:02:47.2]} 13. f4 {[%clk 0:02:54.5]} 13... Bb7 {[%clk 0:02:28.3]}
14. Qd3 {[%clk 0:02:08.6]} 14... axb3 {[%clk 0:01:49.6]} 15. axb3 {[%clk
0:02:08.6]} 15... O-O {[%clk 0:01:49.3]} 16. Be2 {[%clk 0:02:07.9]} 16... Qg6
{[%clk 0:01:05.2]} 17. Qxg6 {[%clk 0:02:01.6]} 17... fxg6 {[%clk 0:00:42.3]} 18.
g3 {[%clk 0:01:59.5]} 18... c5 {[%clk 0:00:37.1]} 19. O-O-O {[%clk 0:01:17]}
19... Bxh1 {[%clk 0:00:29.4]} 20. Rxh1 {[%clk 0:01:18]} 20... Ra2 {[%clk
0:00:28.4]} 21. Bd3 {[%clk 0:01:11.2]} 21... Bxd2+ {[%clk 0:00:27.5]} 22. Kb1
{[%clk 0:01:08.6]} 22... Rfa8 {[%clk 0:00:26.4]} 23. h4 {[%clk 0:01:08.8]} 23...
Be3 {[%clk 0:00:26.2]} 24. h5 {[%clk 0:01:07.4]} 24... gxh5 {[%clk 0:00:27.1]}
25. Rxh5 {[%clk 0:01:07.9]} 25... h6 {[%clk 0:00:28]} 26. e6 {[%clk 0:01:05.4]}
26... dxe6 {[%clk 0:00:26.9]} 27. Be4 {[%clk 0:01:06.7]} 27... R8a7 {[%clk
0:00:23.1]} 28. g4 {[%clk 0:01:00.8]} 28... Nd7 {[%clk 0:00:22.8]} 29. g5 {[%clk
0:00:59.4]} 29... Bd4 {[%clk 0:00:22.5]} 30. Bxd4 {[%clk 0:00:59.6]} 30... cxd4
{[%clk 0:00:23.3]} 31. gxh6 {[%clk 0:01:01]} 31... gxh6 {[%clk 0:00:24.2]} 32.
Rxh6 {[%clk 0:01:02.5]} 32... Ra1+ {[%clk 0:00:25.4]} 33. Kc2 {[%clk 0:01:04.1]}
33... R7a2+ {[%clk 0:00:25.9]} 34. Kd3 {[%clk 0:01:05.3]} 34... Rd1# {[%clk
0:00:27.1]} 0-1

[Event "*** Titled Tuesday Blitz"]
[Site "Chess.com"]
[Date "2019.01.01"]
[Round "2"]
[White "MissingLife"]
[Black "lucasmito"]
[Result "1-0"]
[WhiteElo "2427"]
[BlackElo "2439"]
[TimeControl "180+2"]
[EndTime "13:20:30 PST"]
[Termination "MissingLife won by checkmate"]

1. c4 {[%clk 0:03:01.9]} 1... Nf6 {[%clk 0:02:57.2]} 2. Nc3 {[%clk 0:03:03.2]}
2... d5 {[%clk 0:02:56.5]} 3. cxd5 {[%clk 0:03:03.7]} 3... Nxd5 {[%clk
0:02:58.4]} 4. e4 {[%clk 0:03:05.2]} 4... Nxc3 {[%clk 0:02:59.5]} 5. bxc3 {[%clk
0:03:07.1]} 5... g6 {[%clk 0:02:58.5]} 6. Nf3 {[%clk 0:03:07.7]} 6... Bg7 {[%clk
0:02:59.2]} 7. Be2 {[%clk 0:03:06.4]} 7... O-O {[%clk 0:02:58.9]} 8. O-O {[%clk
0:03:07.4]} 8... c5 {[%clk 0:03:00]} 9. Rb1 {[%clk 0:03:05.9]} 9... Nc6 {[%clk
0:02:59.4]} 10. h3 {[%clk 0:03:06.3]} 10... b6 {[%clk 0:02:55.4]} 11. Qa4 {[%clk
0:03:04.5]} 11... Bd7 {[%clk 0:02:52.7]} 12. Qa6 {[%clk 0:02:58.4]} 12... Qc7
{[%clk 0:02:52.2]} 13. Rd1 {[%clk 0:02:57.9]} 13... Rfd8 {[%clk 0:02:47.8]} 14.
d4 {[%clk 0:02:54.5]} 14... cxd4 {[%clk 0:02:48.7]} 15. cxd4 {[%clk 0:02:56.4]}
15... e5 {[%clk 0:02:11.1]} 16. d5 {[%clk 0:02:53.9]} 16... Nd4 {[%clk
0:02:12.5]} 17. Nxd4 {[%clk 0:02:44.6]} 17... exd4 {[%clk 0:02:14.4]} 18. Ba3
{[%clk 0:02:39.4]} 18... Re8 {[%clk 0:02:12.9]} 19. Bf3 {[%clk 0:02:34.9]} 19...
Qf4 {[%clk 0:01:57.3]} 20. Rb3 {[%clk 0:02:22.5]} 20... Rec8 {[%clk 0:01:29.1]}
21. Qb7 {[%clk 0:02:06]} 21... Ba4 {[%clk 0:01:28.4]} 22. Bg4 {[%clk 0:01:52.2]}
22... Rcb8 {[%clk 0:01:14]} 23. Qa6 {[%clk 0:01:39]} 23... Bxb3 {[%clk
0:01:12.8]} 24. axb3 {[%clk 0:01:40.9]} 24... Qxe4 {[%clk 0:01:10.1]} 25. Bf3
{[%clk 0:01:41.3]} 25... Qc2 {[%clk 0:01:05.1]} 26. Rc1 {[%clk 0:01:37.4]} 26...
Qxb3 {[%clk 0:00:41.5]} 27. d6 {[%clk 0:01:38.5]} 27... d3 {[%clk 0:00:38.9]}
28. Bxa8 {[%clk 0:01:36.3]} 28... d2 {[%clk 0:00:35.5]} 29. Rc8+ {[%clk
0:01:36.5]} 29... Bf8 {[%clk 0:00:35.9]} 30. Bf3 {[%clk 0:01:25.4]} 30... Qxf3
{[%clk 0:00:23.1]} 31. gxf3 {[%clk 0:01:26.4]} 31... d1=Q+ {[%clk 0:00:24.2]}
32. Kg2 {[%clk 0:01:28]} 32... Rxc8 {[%clk 0:00:22.6]} 33. Qxc8 {[%clk
0:01:29.9]} 33... Kg7 {[%clk 0:00:18.8]} 34. d7 {[%clk 0:01:27.4]} 34... Bxa3
{[%clk 0:00:20]} 35. d8=Q {[%clk 0:01:28.4]} 35... Qa4 {[%clk 0:00:16.8]} 36.
Qc3+ {[%clk 0:01:28.4]} 36... Kh6 {[%clk 0:00:14.8]} 37. Qe3+ {[%clk 0:01:29]}
37... Kg7 {[%clk 0:00:14.6]} 38. Qe5+ {[%clk 0:01:29.3]} 38... Kh6 {[%clk
0:00:15.4]} 39. Qdg5# {[%clk 0:01:26.6]} 1-0

[Event "*** Titled Tuesday Blitz"]
[Site "Chess.com"]
[Date "2019.01.01"]
[Round "2"]
[White "Fivetrick"]
[Black "Tjktiger"]
[Result "0-1"]
[WhiteElo "2662"]
[BlackElo "2732"]
[TimeControl "180+2"]
[EndTime "13:20:33 PST"]
[Termination "Tjktiger won by resignation"]

1. e4 {[%clk 0:03:01.9]} 1... c5 {[%clk 0:02:59.8]} 2. Nf3 {[%clk 0:03:00.7]}
2... g6 {[%clk 0:03:01.3]} 3. d4 {[%clk 0:03:00.3]} 3... cxd4 {[%clk 0:03:03.2]}
4. Nxd4 {[%clk 0:03:01.2]} 4... Bg7 {[%clk 0:03:04.2]} 5. Nc3 {[%clk 0:03:02.1]}
5... Nc6 {[%clk 0:03:05.7]} 6. Be3 {[%clk 0:03:02.5]} 6... Nf6 {[%clk
0:03:07.1]} 7. Bc4 {[%clk 0:03:03.3]} 7... O-O {[%clk 0:03:08.6]} 8. Bb3 {[%clk
0:03:03.8]} 8... d5 {[%clk 0:03:09.3]} 9. exd5 {[%clk 0:02:59.9]} 9... Nb4
{[%clk 0:03:10.4]} 10. Qd2 {[%clk 0:02:53.9]} 10... Nfxd5 {[%clk 0:03:07.2]} 11.
Bh6 {[%clk 0:02:46.8]} 11... e5 {[%clk 0:02:34.7]} 12. Bxg7 {[%clk 0:02:35.6]}
12... Kxg7 {[%clk 0:02:35.2]} 13. Nxd5 {[%clk 0:02:32]} 13... Nxd5 {[%clk
0:02:30.4]} 14. Bxd5 {[%clk 0:02:32.4]} 14... exd4 {[%clk 0:02:29.9]} 15. Qxd4+
{[%clk 0:02:32.7]} 15... Kg8 {[%clk 0:02:31.1]} 16. O-O-O {[%clk 0:02:30.8]}
16... Bf5 {[%clk 0:02:06.3]} 17. Bxb7 {[%clk 0:00:59.4]} 17... Qc7 {[%clk
0:01:56.9]} 18. Be4 {[%clk 0:00:54.3]} 18... Qf4+ {[%clk 0:01:57.5]} 19. Kb1
{[%clk 0:00:38.4]} 19... Qxe4 {[%clk 0:01:57.8]} 20. Qxe4 {[%clk 0:00:38.4]}
20... Bxe4 {[%clk 0:01:59.7]} 21. Rhe1 {[%clk 0:00:39.6]} 21... Bxg2 {[%clk
0:01:59.3]} 22. Re7 {[%clk 0:00:38.4]} 22... Rad8 {[%clk 0:01:50.2]} 23. Rdd7
{[%clk 0:00:36.8]} 23... Bc6 {[%clk 0:01:44.3]} 24. Rxd8 {[%clk 0:00:28.1]}
24... Rxd8 {[%clk 0:01:46.2]} 25. b3 {[%clk 0:00:28.9]} 25... Rd7 {[%clk
0:01:44.6]} 26. Re8+ {[%clk 0:00:26.3]} 26... Kg7 {[%clk 0:01:45.8]} 27. Rc8
{[%clk 0:00:27.1]} 27... Bb7 {[%clk 0:01:44.1]} 28. Rc5 {[%clk 0:00:26.6]} 28...
Rd2 {[%clk 0:01:39.1]} 29. Kc1 {[%clk 0:00:19.7]} 29... Rxf2 {[%clk 0:01:39.5]}
30. Rc7 {[%clk 0:00:18.7]} 30... Be4 {[%clk 0:01:40.9]} 31. a4 {[%clk
0:00:18.8]} 31... a5 {[%clk 0:01:41]} 32. Rc4 {[%clk 0:00:17.1]} 32... f5 {[%clk
0:01:40.2]} 33. Rc5 {[%clk 0:00:15.4]} 33... f4 {[%clk 0:01:35.2]} 34. c4 {[%clk
0:00:16.2]} 34... f3 {[%clk 0:01:34.4]} 35. Rxa5 {[%clk 0:00:16.7]} 35... Rc2+
{[%clk 0:01:33.1]} 36. Kd1 {[%clk 0:00:17.5]} 36... f2 {[%clk 0:01:34.5]} 37.
Ra7+ {[%clk 0:00:17.4]} 37... Kf6 {[%clk 0:01:34.5]} 0-1

[Event "*** Titled Tuesday Blitz"]
[Site "Chess.com"]
[Date "2019.01.01"]
[Round "2"]
[White "SimonKnightRivendell"]
[Black "sunloong"]
[Result "1-0"]
[WhiteElo "1988"]
[BlackElo "1904"]
[TimeControl "180+2"]
[EndTime "13:20:45 PST"]
[Termination "SimonKnightRivendell won on time"]

1. d4 {[%clk 0:03:01.9]} 1... Nf6 {[%clk 0:03:01.9]} 2. Nf3 {[%clk 0:03:02.9]}
2... g6 {[%clk 0:03:03.3]} 3. e3 {[%clk 0:03:03.7]} 3... Bg7 {[%clk 0:03:04.4]}
4. Bd3 {[%clk 0:03:05.2]} 4... O-O {[%clk 0:03:05.6]} 5. O-O {[%clk 0:03:06.8]}
5... d6 {[%clk 0:03:06.3]} 6. c3 {[%clk 0:03:08.4]} 6... Nbd7 {[%clk 0:03:07.5]}
7. Nbd2 {[%clk 0:03:10]} 7... e5 {[%clk 0:03:08.7]} 8. e4 {[%clk 0:03:09.8]}
8... Re8 {[%clk 0:03:08.7]} 9. b3 {[%clk 0:03:08.1]} 9... c6 {[%clk 0:03:08.4]}
10. Bb2 {[%clk 0:03:09.2]} 10... Qe7 {[%clk 0:03:08.3]} 11. Re1 {[%clk
0:03:09.2]} 11... a6 {[%clk 0:02:47.7]} 12. a4 {[%clk 0:03:05.9]} 12... b6
{[%clk 0:02:47.7]} 13. Nc4 {[%clk 0:02:57.7]} 13... Bb7 {[%clk 0:02:18.1]} 14.
Qc2 {[%clk 0:02:57.3]} 14... Rab8 {[%clk 0:02:14.6]} 15. dxe5 {[%clk 0:02:49.6]}
15... dxe5 {[%clk 0:01:58.8]} 16. Ne3 {[%clk 0:02:45.9]} 16... h6 {[%clk
0:01:55.9]} 17. a5 {[%clk 0:02:41.8]} 17... b5 {[%clk 0:01:52.4]} 18. Rad1
{[%clk 0:02:31.6]} 18... Qd8 {[%clk 0:01:51.5]} 19. b4 {[%clk 0:02:22.4]} 19...
Qe7 {[%clk 0:01:46.4]} 20. Bf1 {[%clk 0:02:16.1]} 20... Nh5 {[%clk 0:01:22.9]}
21. g3 {[%clk 0:02:12.3]} 21... Nhf6 {[%clk 0:01:13.3]} 22. Qb3 {[%clk
0:02:10.9]} 22... Nxe4 {[%clk 0:01:08.1]} 23. Ng4 {[%clk 0:02:11.6]} 23... c5
{[%clk 0:00:57.8]} 24. Bh3 {[%clk 0:01:58]} 24... c4 {[%clk 0:00:38.8]} 25. Qc2
{[%clk 0:01:58.6]} 25... f5 {[%clk 0:00:40]} 26. Ne3 {[%clk 0:01:45.1]} 26... g5
{[%clk 0:00:34.9]} 27. Nxf5 {[%clk 0:01:39.7]} 27... Qf7 {[%clk 0:00:24.4]} 28.
Rxd7 {[%clk 0:01:39]} 28... Qxd7 {[%clk 0:00:16.6]} 29. Nxh6+ {[%clk 0:01:39.5]}
29... Bxh6 {[%clk 0:00:18]} 30. Bxd7 {[%clk 0:01:40.4]} 30... Re7 {[%clk
0:00:16]} 31. Bf5 {[%clk 0:01:40.9]} 31... Nd6 {[%clk 0:00:11]} 32. Nxe5 {[%clk
0:01:31.6]} 32... Rbe8 {[%clk 0:00:05.7]} 33. Bh7+ {[%clk 0:01:01.7]} 33... Rxh7
{[%clk 0:00:04.5]} 34. Qg6+ {[%clk 0:01:02.5]} 1-0

[Event "*** Titled Tuesday Blitz"]
[Site "Chess.com"]
[Date "2019.01.01"]
[Round "2"]
[White "esteban062000"]
[Black "KRASAVCHIK2002"]
[Result "1-0"]
[WhiteElo "2191"]
[BlackElo "2263"]
[TimeControl "180+2"]
[EndTime "13:20:46 PST"]
[Termination "esteban062000 won by resignation"]

1. Nf3 {[%clk 0:03:01.9]} 1... Nf6 {[%clk 0:03:00.3]} 2. c4 {[%clk 0:03:02]}
2... c5 {[%clk 0:03:00.9]} 3. b3 {[%clk 0:03:02.7]} 3... g6 {[%clk 0:02:59.6]}
4. Bb2 {[%clk 0:03:03.4]} 4... Bg7 {[%clk 0:03:00.8]} 5. g3 {[%clk 0:03:03.4]}
5... O-O {[%clk 0:03:00.9]} 6. Bg2 {[%clk 0:03:04.6]} 6... Nc6 {[%clk
0:03:00.8]} 7. O-O {[%clk 0:03:05.2]} 7... d5 {[%clk 0:03:02]} 8. cxd5 {[%clk
0:03:04.4]} 8... Nxd5 {[%clk 0:03:03.9]} 9. Bxg7 {[%clk 0:03:05.1]} 9... Kxg7
{[%clk 0:03:05]} 10. d3 {[%clk 0:03:00.7]} 10... b6 {[%clk 0:02:48.4]} 11. Nbd2
{[%clk 0:03:00.5]} 11... Bb7 {[%clk 0:02:48]} 12. Qc1 {[%clk 0:02:49.4]} 12...
Qd7 {[%clk 0:02:38.3]} 13. Qb2+ {[%clk 0:02:49.2]} 13... Kg8 {[%clk 0:02:39]}
14. Nc4 {[%clk 0:02:49.6]} 14... f6 {[%clk 0:02:31.5]} 15. Rfd1 {[%clk
0:02:28.7]} 15... e5 {[%clk 0:02:23.9]} 16. Rac1 {[%clk 0:02:20.1]} 16... Rad8
{[%clk 0:02:18.1]} 17. e3 {[%clk 0:01:56.4]} 17... Qe7 {[%clk 0:01:48.1]} 18. d4
{[%clk 0:01:49]} 18... cxd4 {[%clk 0:01:47.7]} 19. exd4 {[%clk 0:01:49.3]} 19...
e4 {[%clk 0:01:49.1]} 20. Ne1 {[%clk 0:01:43.9]} 20... f5 {[%clk 0:01:39.4]} 21.
Nc2 {[%clk 0:01:43.5]} 21... f4 {[%clk 0:01:38.4]} 22. gxf4 {[%clk 0:01:41]}
22... Nxf4 {[%clk 0:01:38.1]} 23. N2e3 {[%clk 0:01:39.9]} 23... Nd3 {[%clk
0:01:36.7]} 24. Rxd3 {[%clk 0:01:36.4]} 24... exd3 {[%clk 0:01:36.8]} 25. d5
{[%clk 0:01:35.4]} 25... Nb4 {[%clk 0:01:06.7]} 26. d6 {[%clk 0:01:34.1]} 26...
Qf7 {[%clk 0:00:52.5]} 27. Ne5 {[%clk 0:01:14]} 27... Qg7 {[%clk 0:00:51.8]} 28.
Bxb7 {[%clk 0:00:57.6]} 28... Qxb7 {[%clk 0:00:51.3]} 29. Rc7 {[%clk 0:00:52.6]}
29... Qe4 {[%clk 0:00:28.4]} 30. N5g4 {[%clk 0:00:43.4]} 1-0

[Event "*** Titled Tuesday Blitz"]
[Site "Chess.com"]
[Date "2019.01.01"]
[Round "2"]
[White "HonzaVykouk"]
[Black "GeorgMeier"]
[Result "1-0"]
[WhiteElo "2637"]
[BlackElo "2811"]
[TimeControl "180+2"]
[EndTime "13:20:47 PST"]
[Termination "HonzaVykouk won by resignation"]

1. e4 {[%clk 0:03:00.7]} 1... e6 {[%clk 0:03:01.6]} 2. d4 {[%clk 0:03:00.1]}
2... d5 {[%clk 0:03:03.5]} 3. Nc3 {[%clk 0:03:01]} 3... dxe4 {[%clk 0:03:05.1]}
4. Nxe4 {[%clk 0:03:01.9]} 4... Nd7 {[%clk 0:03:07]} 5. Nf3 {[%clk 0:03:03]}
5... Ngf6 {[%clk 0:03:08.9]} 6. Ng3 {[%clk 0:03:04.4]} 6... c5 {[%clk
0:03:10.2]} 7. Bd3 {[%clk 0:03:03.3]} 7... cxd4 {[%clk 0:03:08.8]} 8. Nxd4
{[%clk 0:03:03.2]} 8... Nc5 {[%clk 0:03:09.1]} 9. O-O {[%clk 0:02:50.1]} 9...
Nxd3 {[%clk 0:03:09]} 10. Qxd3 {[%clk 0:02:50.9]} 10... Be7 {[%clk 0:03:10.6]}
11. b3 {[%clk 0:02:47.5]} 11... O-O {[%clk 0:03:07.9]} 12. Bb2 {[%clk
0:02:47.5]} 12... Bd7 {[%clk 0:03:07.9]} 13. c4 {[%clk 0:02:44.3]} 13... Qa5
{[%clk 0:03:08.2]} 14. Rfe1 {[%clk 0:02:40.4]} 14... Rfd8 {[%clk 0:02:59.8]} 15.
Qf3 {[%clk 0:02:36.5]} 15... Bb4 {[%clk 0:02:49.2]} 16. Red1 {[%clk 0:02:35.6]}
16... Qc7 {[%clk 0:02:39.3]} 17. Qe2 {[%clk 0:02:34.7]} 17... Be8 {[%clk
0:02:27.1]} 18. Rd3 {[%clk 0:02:34.7]} 18... Rac8 {[%clk 0:02:23.6]} 19. Rad1
{[%clk 0:02:34.8]} 19... a6 {[%clk 0:02:24.2]} 20. a3 {[%clk 0:02:29.3]} 20...
Be7 {[%clk 0:02:16.9]} 21. h4 {[%clk 0:02:26]} 21... b5 {[%clk 0:02:12.8]} 22.
cxb5 {[%clk 0:02:22.9]} 22... axb5 {[%clk 0:02:13.2]} 23. Nxb5 {[%clk
0:02:23.3]} 23... Qb6 {[%clk 0:02:08]} 24. a4 {[%clk 0:02:21.7]} 24... Bxb5
{[%clk 0:02:02.5]} 25. Rxd8+ {[%clk 0:02:19]} 25... Bxd8 {[%clk 0:02:02.9]} 26.
axb5 {[%clk 0:02:16.7]} 26... Rb8 {[%clk 0:01:54.2]} 27. Ne4 {[%clk 0:02:07.5]}
27... Nd5 {[%clk 0:01:54]} 28. h5 {[%clk 0:02:05]} 28... Be7 {[%clk 0:01:17]}
29. Qg4 {[%clk 0:02:02.4]} 29... f6 {[%clk 0:01:18.2]} 30. Bd4 {[%clk
0:01:54.3]} 30... Qxb5 {[%clk 0:01:04.3]} 31. Qxe6+ {[%clk 0:01:49]} 31... Kf8
{[%clk 0:01:05.4]} 32. h6 {[%clk 0:01:44.3]} 32... Qxb3 {[%clk 0:00:50.2]} 33.
hxg7+ {[%clk 0:01:41.1]} 33... Kxg7 {[%clk 0:00:51.4]} 34. Re1 {[%clk 0:01:35]}
34... Rb7 {[%clk 0:00:42.6]} 35. Ng3 {[%clk 0:01:32.6]} 35... Bb4 {[%clk
0:00:24]} 36. Nh5+ {[%clk 0:01:27.4]} 36... Kg6 {[%clk 0:00:17.6]} 37. Nxf6
{[%clk 0:01:13.4]} 37... Ne7 {[%clk 0:00:12.3]} 38. Qxb3 {[%clk 0:01:08.6]} 1-0